fUSD/lending_fUSD_20250514
["ID","MTS","AMOUNT","RATE_DAILY","PERIOD"]
[361108664,1747264254592,-400.0,0.00011451,2]
[361108665,1747264254601,-1113.06,0.00011451,2]
[361108666,1747264254612,-795.08,0.00011451,2]
[361108667,1747264254621,-400.0,0.00011451,2]
[361108668,1747264254630,-400.0,0.00011451,2]
[361108669,1747264254639,-400.0,0.00011451,2]
[361108670,1747264254649,-1333.23,0.00011451,2]
[361108671,1747264254658,-400.0,0.00011451,2]
[361108672,1747264254668,-400.0,0.00011451,2]
[361108673,1747264254677,-2056.57,0.00011451,2]
[361108674,1747264254687,-694.96,0.00011451,2]
[361108675,1747264254696,-400.0,0.00011451,2]
[361108676,1747264254706,-400.0,0.00011451,2]
[361108677,1747264254715,-915.71,0.00011451,2]
[361108678,1747264254724,-412.24,0.00011451,2]
[361108679,1747264254734,-400.0,0.00011451,2]
[361108680,1747264254743,-906.0,0.00011451,2]
[361108681,1747264254752,-400.0,0.00011451,2]
[361108682,1747264254762,-400.0,0.00011451,2]
[361108683,1747264254771,-151.0,0.00011451,2]
[361108684,1747264254780,-151.0,0.00011451,2]
[361108685,1747264254789,-920.87,0.00011451,2]
[361108686,1747264254799,-400.0,0.00011451,2]
[361108687,1747264254808,-1261.05,0.00011451,2]
[361108688,1747264254817,-400.0,0.00011451,2]
[361108689,1747264254826,-1187.04,0.00011451,2]
[361108690,1747264254835,-400.0,0.00011451,2]
[361108691,1747264254844,-1289.05,0.00011451,2]
[361108692,1747264254854,-400.0,0.00011451,2]
[361108693,1747264254863,-400.0,0.00011451,2]
[361108694,1747264254872,-213.91414173,0.00011451,2]
[361108695,1747264254882,-2923.35,0.00011451,2]
[361108696,1747264254891,-400.0,0.00011451,2]
[361108697,1747264254901,-1022.61,0.00011451,2]
[361108698,1747264254911,-433.78,0.00011451,2]
[361108699,1747264254920,-400.0,0.00011451,2]
[361108700,1747264254930,-400.0,0.00011451,2]
[361108701,1747264254939,-711.84,0.00011451,2]
[361108702,1747264254949,-977.42,0.00011451,2]
[361108703,1747264254959,-400.0,0.00011451,2]
[361108704,1747264254968,-400.0,0.00011451,2]
[361108705,1747264254978,-890.2,0.00011451,2]
[361108706,1747264254988,-400.0,0.00011451,2]
[361108707,1747264254998,-1350.79,0.00011451,2]
[361108708,1747264255007,-541.83,0.00011451,2]
[361108709,1747264255016,-400.0,0.00011451,2]
[361108710,1747264255026,-400.0,0.00011451,2]
[361108711,1747264255036,-5623.4,0.00011451,2]
[361108712,1747264255046,-1902.44,0.00011451,2]
[361108713,1747264255056,-400.0,0.00011451,2]
[361108714,1747264255066,-400.0,0.00011451,2]
[361108715,1747264255076,-400.0,0.00011451,2]
[361108716,1747264255085,-400.0,0.00011451,2]
[361108717,1747264255095,-400.0,0.00011451,2]
[361108718,1747264255105,-400.0,0.00011451,2]
[361108719,1747264255114,-400.0,0.00011451,2]
[361108720,1747264255124,-151.0,0.00011451,2]
[361108721,1747264255133,-400.0,0.00011451,2]
[361108722,1747264255143,-708.2,0.00011451,2]
[361108723,1747264255153,-5758.42,0.00011451,2]
[361108724,1747264255162,-151.0,0.00011451,2]
[361108725,1747264255172,-400.0,0.00011451,2]
[361108726,1747264255182,-151.0,0.00011451,2]
[361108727,1747264255191,-3168.59,0.00011451,2]
[361108728,1747264255203,-400.0,0.00011451,2]
[361108729,1747264255213,-11160.2,0.00011451,2]
[361108730,1747264255223,-400.0,0.00011451,2]
[361108731,1747264255233,-400.0,0.00011451,2]
[361108732,1747264255243,-2221.92,0.00011451,2]
[361108733,1747264255253,-400.0,0.00011451,2]
[361108734,1747264255262,-400.0,0.00011451,2]
[361108735,1747264255272,-869.38,0.00011451,2]
[361108736,1747264255282,-400.0,0.00011451,2]
[361108737,1747264255291,-400.0,0.00011451,2]
[361108738,1747264255301,-547.37,0.00011451,2]
[361108739,1747264255310,-400.0,0.00011451,2]
[361108740,1747264255320,-1582.57,0.00011451,2]
[361108741,1747264255330,-151.0,0.00011451,2]
[361108742,1747264255340,-1327.27,0.00011451,2]
[361108743,1747264255350,-400.0,0.00011451,2]
[361108744,1747264255360,-151.0,0.00011451,2]
[361108745,1747264255370,-151.0,0.00011451,2]
[361108746,1747264255380,-400.0,0.00011451,2]
[361108747,1747264255389,-400.0,0.00011451,2]
[361108748,1747264255399,-674.11,0.00011451,2]
[361108749,1747264255409,-400.0,0.00011451,2]
[361108750,1747264255419,-400.0,0.00011451,2]
[361108751,1747264255428,-400.0,0.00011451,2]
[361108752,1747264255439,-400.0,0.00011451,2]
[361108753,1747264255449,-151.0,0.00011451,2]
[361108754,1747264255462,-151.0,0.00011451,2]
[361108755,1747264255472,-400.0,0.00011451,2]
[361108756,1747264255483,-400.0,0.00011451,2]
[361108757,1747264255493,-531.23,0.00011451,2]
[361108758,1747264255503,-589.15,0.00011451,2]
[361108759,1747264255513,-467.93,0.00011451,2]
[361108760,1747264255524,-3055.08,0.00011451,2]
[361108761,1747264255534,-400.0,0.00011451,2]
[361108762,1747264255547,-906.91,0.00011451,2]
[361108763,1747264255558,-891.28,0.00011451,2]
[361108764,1747264255568,-150.0,0.00011451,2]
[361108765,1747264255578,-400.0,0.00011451,2]
[361108766,1747264255588,-400.0,0.00011451,2]
[361108767,1747264255598,-400.77,0.00011451,2]
[361108768,1747264255607,-400.0,0.00011451,2]
[361108769,1747264255617,-400.0,0.00011451,2]
[361108770,1747264255627,-281.7454282,0.00011451,2]
[361108771,1747264255637,-400.0,0.00011451,2]
[361108772,1747264255647,-400.0,0.00011451,2]
[361108773,1747264255657,-150.0,0.00011451,2]
[361108774,1747264255667,-400.0,0.00011451,2]
[361108775,1747264255676,-983.55,0.00011451,2]
[361108776,1747264255686,-400.0,0.00011451,2]
[361108777,1747264255696,-400.0,0.00011451,2]
[361108778,1747264255707,-151.0,0.00011451,2]
[361108779,1747264255717,-588.18,0.00011451,2]
[361108780,1747264255727,-151.0,0.00011451,2]
[361108781,1747264255736,-400.0,0.00011451,2]
[361108782,1747264255747,-151.0,0.00011451,2]
[361108783,1747264255757,-2072.02,0.00011451,2]
[361108784,1747264255768,-290.32984994,0.00011451,2]
[361108785,1747264255777,-3903.54,0.00011451,2]
[361108786,1747264255787,-151.0,0.00011451,2]
[361108787,1747264255796,-151.0,0.00011451,2]
[361108788,1747264255805,-151.0,0.00011451,2]
[361108789,1747264255815,-400.0,0.00011451,2]
[361108790,1747264255824,-400.0,0.00011451,2]
[361108791,1747264255834,-400.0,0.00011451,2]
[361108792,1747264255844,-1202.41,0.00011451,2]
[361108793,1747264255854,-151.0,0.00011451,2]
[361108794,1747264255863,-400.0,0.00011451,2]
[361108795,1747264255872,-151.0,0.00011451,2]
[361108796,1747264255882,-400.0,0.00011451,2]
[361108797,1747264255891,-980.88,0.00011451,2]
[361108798,1747264255901,-400.73,0.00011451,2]
[361108799,1747264255910,-5749.86,0.00011451,2]
[361108800,1747264255920,-150.0,0.00011451,2]
[361108801,1747264255929,-164.723669,0.00011451,2]
[361108802,1747264255939,-498.76,0.00011451,2]
[361108803,1747264255948,-445.36,0.00011451,2]
[361108804,1747264255959,-400.0,0.00011451,2]
[361108805,1747264255968,-400.0,0.00011451,2]
[361108806,1747264255978,-599.43,0.00011451,2]
[361108807,1747264255987,-164.723669,0.00011451,2]
[361108808,1747264255998,-400.0,0.00011451,2]
[361108809,1747264256009,-20037.7,0.00011451,2]
[361108810,1747264256019,-1349.87,0.00011451,2]
[361108811,1747264256029,-151.0,0.00011451,2]
[361108812,1747264256040,-805.12,0.00011451,2]
[361108813,1747264256050,-434.42,0.00011451,2]
[361108814,1747264256059,-729.601435,0.00011451,2]
[361108815,1747264256069,-892.69,0.00011451,2]
[361108816,1747264256079,-729.601435,0.00011451,2]
[361108817,1747264256088,-1683.5,0.00011451,2]
[361108818,1747264256098,-437.47,0.00011451,2]
[361108819,1747264256109,-593.48,0.00011451,2]
[361108820,1747264256120,-729.601435,0.00011451,2]
[361108821,1747264256130,-729.601435,0.00011451,2]
[361108822,1747264256140,-639.24,0.00011451,2]
[361108823,1747264256150,-5740.66,0.00011451,2]
[361108824,1747264256160,-65970.0,0.00011451,2]
[361108825,1747264256169,-400.0,0.00011451,2]
[361108826,1747264256179,-527.29,0.00011451,2]
[361108827,1747264256188,-1000.0,0.00011451,2]
[361108828,1747264256198,-400.0,0.00011451,2]
[361108829,1747264256210,-400.0,0.00011451,2]
[361108830,1747264256220,-400.0,0.00011451,2]
[361108831,1747264256229,-1343.70432664,0.00011451,2]
[361108832,1747264257650,-400.0,0.00011176,2]
[361108833,1747264257660,-400.0,0.00011176,2]
[361108834,1747264257669,-400.0,0.00011177,2]
[361108835,1747264257679,-400.0,0.0001145,2]
[361108836,1747264257689,-451.07,0.0001145,2]
[361108837,1747264257699,-9710.65567336,0.00011451,2]
[361108838,1747264257709,-1094.62,0.00011451,2]
[361108839,1747264257719,-450.0,0.00011451,2]
[361108840,1747264257728,-400.0,0.00011451,2]
[361108841,1747264257738,-400.0,0.00011451,2]
[361108842,1747264257748,-400.0,0.00011451,2]
[361108843,1747264257758,-400.0,0.00011451,2]
[361108844,1747264257768,-492.15,0.00011451,2]
[361108845,1747264257778,-151.0,0.00011451,2]
[361108846,1747264257787,-400.0,0.00011451,2]
[361108847,1747264257797,-151.0,0.00011451,2]
[361108848,1747264257807,-151.0,0.00011451,2]
[361108849,1747264257817,-459.17,0.00011451,2]
[361108850,1747264257827,-400.0,0.00011451,2]
[361108851,1747264257836,-400.0,0.00011451,2]
[361108852,1747264257846,-400.0,0.00011451,2]
[361108853,1747264257856,-2539.0,0.00011451,2]
[361108854,1747264257866,-642.94,0.00011451,2]
[361108855,1747264257875,-400.0,0.00011451,2]
[361108856,1747264257884,-400.0,0.00011451,2]
[361108857,1747264257894,-400.0,0.00011451,2]
[361108858,1747264257903,-400.0,0.00011451,2]
[361108859,1747264257913,-400.0,0.00011451,2]
[361108860,1747264257922,-400.0,0.00011451,2]
[361108861,1747264257932,-2633.62,0.00011451,2]
[361108862,1747264257941,-1818.85,0.00011451,2]
[361108863,1747264257951,-400.0,0.00011451,2]
[361108864,1747264257961,-400.0,0.00011451,2]
[361108865,1747264257970,-400.0,0.00011451,2]
[361108866,1747264257979,-400.0,0.00011451,2]
[361108867,1747264257988,-2188.1,0.00011451,2]
[361108868,1747264257998,-400.0,0.00011451,2]
[361108869,1747264258007,-560.77,0.00011451,2]
[361108870,1747264258017,-467.74,0.00011451,2]
[361108871,1747264258026,-831.49,0.00011451,2]
[361108872,1747264258035,-750.29,0.00011451,2]
[361108873,1747264258045,-1172.14,0.00011451,2]
[361108874,1747264258055,-400.0,0.00011451,2]
[361108875,1747264258065,-571.17,0.00011451,2]
[361108876,1747264258074,-151.0,0.00011451,2]
[361108877,1747264258083,-400.0,0.00011451,2]
[361108878,1747264258094,-400.0,0.00011452,2]
[361108879,1747264258103,-397.2,0.00011452,2]
[361108880,1747264258112,-400.0,0.00011452,2]
[361108881,1747264258122,-195.16211709,0.00011452,2]
[361108882,1747264258131,-400.0,0.00011452,2]
[361108883,1747264258140,-400.0,0.00011452,2]
[361108884,1747264258150,-400.0,0.00011452,2]
[361108885,1747264258159,-400.0,0.00011452,2]
[361108886,1747264258169,-400.0,0.00011452,2]
[361108887,1747264258178,-703.02,0.00011452,2]
[361108888,1747264258188,-400.0,0.00011452,2]
[361108889,1747264258198,-400.0,0.00011452,2]
[361108890,1747264258208,-500.0,0.00011452,2]
[361108891,1747264258218,-500.0,0.00011452,2]
[361108892,1747264258228,-400.0,0.00011452,2]
[361108893,1747264258237,-538.13,0.00011452,2]
[361108894,1747264258246,-768.77,0.00011452,2]
[361108895,1747264258256,-400.0,0.00011452,2]
[361108896,1747264258265,-400.0,0.00011452,2]
[361108897,1747264258275,-400.0,0.00011452,2]
[361108898,1747264258284,-400.0,0.00011452,2]
[361108899,1747264258294,-400.0,0.00011452,2]
[361108900,1747264258303,-400.0,0.00011452,2]
[361108901,1747264258313,-400.0,0.00011452,2]
[361108902,1747264258322,-400.0,0.00011452,2]
[361108903,1747264258331,-400.0,0.00011452,2]
[361108904,1747264258341,-400.0,0.00011452,2]
[361108905,1747264258350,-400.0,0.00011452,2]
[361108906,1747264258360,-400.0,0.00011452,2]
[361108907,1747264258369,-400.0,0.00011452,2]
[361108908,1747264258379,-400.0,0.00011452,2]
[361108909,1747264258388,-400.0,0.00011452,2]
[361108910,1747264258398,-400.0,0.00011452,2]
[361108911,1747264258407,-425.54,0.00011452,2]
[361108912,1747264258417,-400.0,0.00011452,2]
[361108913,1747264258426,-400.0,0.00011452,2]
[361108914,1747264258436,-293.00906727,0.00011452,2]
[361108915,1747264258445,-400.0,0.00011452,2]
[361108916,1747264258455,-521.13765372,0.00011452,2]
[361108917,1747264258465,-400.0,0.00011452,2]
[361108918,1747264258475,-902.52,0.00011452,2]
[361108919,1747264258485,-406.4666124,0.00011452,2]
[361108920,1747264258494,-400.0,0.00011452,2]
[361108921,1747264258504,-270.52633278,0.00011452,2]
[361108922,1747264258514,-400.0,0.00011452,2]
[361108923,1747264258523,-444.04,0.00011452,2]
[361108924,1747264258533,-400.0,0.00011452,2]
[361108925,1747264258545,-400.0,0.00011452,2]
[361108926,1747264258555,-400.0,0.00011452,2]
[361108927,1747264258564,-400.0,0.00011452,2]
[361108928,1747264258574,-400.0,0.00011452,2]
[361108929,1747264258582,-400.0,0.00011452,2]
[361108930,1747264258592,-478.11,0.00011452,2]
[361108931,1747264258601,-446.52,0.00011452,2]
[361108932,1747264258610,-460.65993059,0.00011452,2]
[361108933,1747264258619,-162.984459,0.00011452,2]
[361108934,1747264258629,-618.77,0.00011452,2]
[361108935,1747264258639,-914.64,0.00011452,2]
[361108936,1747264258648,-405.64,0.00011452,2]
[361108937,1747264258658,-151.0,0.00011452,2]
[361108938,1747264258667,-400.0,0.00011452,2]
[361108939,1747264258677,-592.23,0.00011452,2]
[361108940,1747264258686,-210.29192001,0.00011452,2]
[361108941,1747264258695,-151.0,0.00011452,2]
[361108942,1747264258704,-1199.27,0.00011452,2]
[361108943,1747264258714,-450.0,0.00011452,2]
[361108944,1747264258724,-400.0,0.00011452,2]
[361108945,1747264258733,-400.0,0.00011452,2]
[361108946,1747264258744,-943.59,0.00011452,2]
[361108947,1747264258754,-400.0,0.00011452,2]
[361108948,1747264258763,-400.0,0.00011452,2]
[361108949,1747264258772,-400.0,0.00011452,2]
[361108950,1747264258782,-400.0,0.00011452,2]
[361108951,1747264258791,-400.0,0.00011452,2]
[361108952,1747264258801,-400.0,0.00011452,2]
[361108953,1747264258810,-400.0,0.00011452,2]
[361108954,1747264258821,-400.0,0.00011452,2]
[361108955,1747264258832,-151.0,0.00011452,2]
[361108956,1747264258842,-400.0,0.00011452,2]
[361108957,1747264258852,-151.0,0.00011452,2]
[361108958,1747264258862,-428.18,0.00011452,2]
[361108959,1747264258872,-400.0,0.00011452,2]
[361108960,1747264258881,-400.0,0.00011452,2]
[361108961,1747264258890,-400.0,0.00011452,2]
[361108962,1747264258900,-400.0,0.00011452,2]
[361108963,1747264258909,-400.0,0.00011452,2]
[361108964,1747264258919,-400.0,0.00011452,2]
[361108965,1747264258928,-400.0,0.00011452,2]
[361108966,1747264258938,-400.0,0.00011452,2]
[361108967,1747264258947,-400.0,0.00011452,2]
[361108968,1747264258957,-400.0,0.00011452,2]
[361108969,1747264258966,-400.0,0.00011452,2]
[361108970,1747264258976,-400.0,0.00011452,2]
[361108971,1747264258985,-400.0,0.00011452,2]
[361108972,1747264259056,-400.0,0.00011452,2]
[361108973,1747264259065,-565.13,0.00011452,2]
[361108974,1747264259075,-151.0,0.00011452,2]
[361108975,1747264259085,-400.0,0.00011452,2]
[361108976,1747264259094,-400.0,0.00011452,2]
[361108977,1747264259104,-400.0,0.00011452,2]
[361108978,1747264259114,-400.0,0.00011452,2]
[361108979,1747264259124,-400.0,0.00011452,2]
[361108980,1747264259134,-403.39,0.00011452,2]
[361108981,1747264259145,-400.0,0.00011452,2]
[361108982,1747264259155,-400.0,0.00011452,2]
[361108983,1747264259164,-606.57,0.00011452,2]
[361108984,1747264259173,-400.0,0.00011452,2]
[361108985,1747264259182,-155.274088,0.00011452,2]
[361108986,1747264259192,-400.0,0.00011452,2]
[361108987,1747264259201,-400.0,0.00011452,2]
[361108988,1747264259211,-400.0,0.00011452,2]
[361108989,1747264259220,-400.0,0.00011452,2]
[361108990,1747264259229,-565.61,0.00011452,2]
[361108991,1747264259239,-400.0,0.00011452,2]
[361108992,1747264259248,-400.0,0.00011452,2]
[361108993,1747264259258,-407.23,0.00011452,2]
[361108994,1747264259268,-298.14614286,0.00011452,2]
[361108995,1747264259277,-400.0,0.00011452,2]
[361108996,1747264259286,-400.0,0.00011452,2]
[361108997,1747264259296,-151.0,0.00011452,2]
[361108998,1747264259305,-208.364268,0.00011452,2]
[361108999,1747264259314,-400.0,0.00011452,2]
[361109000,1747264259324,-400.0,0.00011452,2]
[361109001,1747264259334,-400.0,0.00011452,2]
[361109002,1747264259343,-400.0,0.00011452,2]
[361109003,1747264259352,-400.0,0.00011452,2]
[361109004,1747264259361,-400.0,0.00011452,2]
[361109005,1747264259371,-400.0,0.00011452,2]
[361109006,1747264259380,-400.0,0.00011452,2]
[361109007,1747264259389,-400.0,0.00011452,2]
[361109008,1747264259398,-400.0,0.00011452,2]
[361109009,1747264259408,-543.08,0.00011452,2]
[361109010,1747264259418,-151.0,0.00011452,2]
[361109011,1747264259428,-151.0,0.00011452,2]
[361109012,1747264259437,-154.390768,0.00011452,2]
[361109013,1747264259446,-400.0,0.00011452,2]
[361109014,1747264259455,-400.0,0.00011452,2]
[361109015,1747264259465,-151.0,0.00011452,2]
[361109016,1747264259474,-151.0,0.00011452,2]
[361109017,1747264259484,-400.0,0.00011452,2]
[361109018,1747264259493,-2357.92,0.00011452,2]
[361109019,1747264259502,-400.0,0.00011452,2]
[361109020,1747264259512,-614.62,0.00011452,2]
[361109021,1747264259522,-400.0,0.00011452,2]
[361109022,1747264259531,-568.91,0.00011452,2]
[361109023,1747264259544,-833.67,0.00011452,2]
[361109024,1747264259554,-400.0,0.00011452,2]
[361109025,1747264259564,-400.0,0.00011452,2]
[361109026,1747264259573,-442.74,0.00011452,2]
[361109027,1747264259584,-151.0,0.00011452,2]
[361109028,1747264259594,-151.0,0.00011452,2]
[361109029,1747264259604,-151.0,0.00011452,2]
[361109030,1747264259615,-151.0,0.00011452,2]
[361109031,1747264259625,-572.77,0.00011452,2]
[361109032,1747264259634,-151.0,0.00011452,2]
[361109033,1747264259644,-151.0,0.00011452,2]
[361109034,1747264259653,-400.0,0.00011452,2]
[361109035,1747264259663,-547.5,0.00011452,2]
[361109036,1747264259673,-400.0,0.00011452,2]
[361109037,1747264259682,-151.0,0.00011452,2]
[361109038,1747264259692,-151.0,0.00011452,2]
[361109039,1747264259701,-400.0,0.00011452,2]
[361109040,1747264259712,-153.308479,0.00011452,2]
[361109041,1747264259721,-400.0,0.00011452,2]
[361109042,1747264259730,-1577.88,0.00011452,2]
[361109043,1747264259739,-400.0,0.00011452,2]
[361109044,1747264259749,-1143.94,0.00011452,2]
[361109045,1747264259758,-400.0,0.00011452,2]
[361109046,1747264259768,-428.61,0.00011452,2]
[361109047,1747264259778,-400.0,0.00011452,2]
[361109048,1747264259788,-461.02,0.00011452,2]
[361109049,1747264259797,-400.0,0.00011452,2]
[361109050,1747264259806,-571.15,0.00011452,2]
[361109051,1747264259816,-400.0,0.00011452,2]
[361109052,1747264259826,-151.0,0.00011452,2]
[361109053,1747264259836,-151.0,0.00011452,2]
[361109054,1747264259845,-400.0,0.00011452,2]
[361109055,1747264259854,-575.08,0.00011452,2]
[361109056,1747264259863,-151.0,0.00011452,2]
[361109057,1747264259873,-151.0,0.00011452,2]
[361109058,1747264259883,-400.0,0.00011452,2]
[361109059,1747264259892,-1410.22,0.00011452,2]
[361109060,1747264259902,-459.54,0.00011452,2]
[361109061,1747264259911,-10000.0,0.00011452,2]
[361109062,1747264259920,-10000.0,0.00011452,2]
[361109063,1747264259929,-151.0,0.00011452,2]
[361109064,1747264259938,-151.0,0.00011452,2]
[361109065,1747264259947,-151.0,0.00011452,2]
[361109066,1747264259957,-1444.34,0.00011452,2]
[361109067,1747264259967,-239.520118,0.00011452,2]
[361109068,1747264259976,-636.01,0.00011452,2]
[361109069,1747264259986,-205.727068,0.00011452,2]
[361109070,1747264259996,-460.77358364,0.00011452,2]
[361109071,1747264260005,-409.88,0.00011452,2]
[361109072,1747264260014,-732.07,0.00011452,2]
[361109073,1747264260024,-151.0,0.00011452,2]
[361109074,1747264260033,-772.23,0.00011452,2]
[361109075,1747264260043,-520.06,0.00011452,2]
[361109076,1747264260053,-151.0,0.00011452,2]
[361109077,1747264260062,-151.0,0.00011452,2]
[361109078,1747264260070,-151.0,0.00011452,2]
[361109079,1747264260079,-151.0,0.00011452,2]
[361109080,1747264260088,-177.496042,0.00011452,2]
[361109081,1747264260097,-177.496042,0.00011452,2]
[361109082,1747264260106,-400.0,0.00011452,2]
[361109083,1747264260114,-177.496042,0.00011452,2]
[361109084,1747264260123,-177.496042,0.00011452,2]
[361109085,1747264260132,-400.0,0.00011452,2]
[361109086,1747264260141,-1011.91,0.00011452,2]
[361109087,1747264260151,-737.17,0.00011452,2]
[361109088,1747264260160,-400.0,0.00011452,2]
[361109089,1747264260170,-151.0,0.00011452,2]
[361109090,1747264260179,-151.0,0.00011452,2]
[361109091,1747264260189,-151.0,0.00011452,2]
[361109092,1747264260198,-151.0,0.00011452,2]
[361109093,1747264260208,-400.0,0.00011452,2]
[361109094,1747264260218,-286.7875,0.00011452,2]
[361109095,1747264260228,-400.0,0.00011452,2]
[361109096,1747264260237,-400.0,0.00011452,2]
[361109097,1747264260246,-400.0,0.00011452,2]
[361109098,1747264260256,-578.03,0.00011452,2]
[361109099,1747264260266,-679.98,0.00011452,2]
[361109100,1747264260275,-500.0,0.00011452,2]
[361109101,1747264260285,-831.99,0.00011452,2]
[361109102,1747264260295,-158.058379,0.00011452,2]
[361109103,1747264260304,-400.0,0.00011452,2]
[361109104,1747264260314,-400.0,0.00011452,2]
[361109105,1747264260323,-400.0,0.00011452,2]
[361109106,1747264260333,-853.7,0.00011452,2]
[361109107,1747264260343,-400.0,0.00011452,2]
[361109108,1747264260354,-151.0,0.00011452,2]
[361109109,1747264260363,-156.463033,0.00011452,2]
[361109110,1747264260373,-151.0,0.00011452,2]
[361109111,1747264260383,-517.5,0.00011452,2]
[361109112,1747264260393,-400.0,0.00011452,2]
[361109113,1747264260402,-1518.62,0.00011452,2]
[361109114,1747264260411,-400.0,0.00011452,2]
[361109115,1747264260421,-151.0,0.00011452,2]
[361109116,1747264260430,-164.723669,0.00011452,2]
[361109117,1747264260440,-164.723669,0.00011452,2]
[361109118,1747264260449,-164.723669,0.00011452,2]
[361109119,1747264260459,-164.723669,0.00011452,2]
[361109120,1747264260468,-500.0,0.00011452,2]
[361109121,1747264260478,-729.601435,0.00011452,2]
[361109122,1747264260487,-729.601435,0.00011452,2]
[361109123,1747264260497,-151.0,0.00011452,2]
[361109124,1747264260506,-1000.0,0.0001146,2]
[361109125,1747264260516,-167.213,0.00011465,2]
[361109126,1747264260525,-2953.53,0.00011466,2]
[361109127,1747264260535,-172.69675003,0.00011473,2]
[361109128,1747264260549,-502.13108564,0.00011473,2]
[361109129,1747264260559,-481.57545001,0.00011473,2]
[361109130,1747264260568,-500.0,0.00011473,2]
[361109131,1747264260577,-500.0,0.00011473,2]
[361109132,1747264260586,-500.0,0.00011473,2]
[361109133,1747264260596,-298.52029272,0.00011488,2]
[361109134,1747264260605,-500.0,0.00011491,2]
[361109135,1747264260614,-1518.62,0.00011491,2]
[361109136,1747264260623,-500.0,0.00011491,2]
[361109137,1747264260633,-244.882,0.00011492,2]
[361109138,1747264260642,-157.26,0.00011492,2]
[361109139,1747264260652,-278.189,0.00011492,2]
[361109140,1747264260661,-198.95,0.00011492,2]
[361109141,1747264260671,-150.18,0.000115,2]
[361109142,1747264260680,-150.18,0.000115,2]
[361109143,1747264260690,-778.22,0.00011507,2]
[361109144,1747264260699,-500.0,0.00011507,2]
[361109145,1747264260709,-150.0,0.00011519,2]
[361109146,1747264260718,-864.05076374,0.00011525,2]
[361109147,1747264260728,-1000.0,0.00011538,2]
[361109148,1747264260738,-1000.0,0.00011549,2]
[361109149,1747264260747,-373.12280385,0.00011567,2]
[361109150,1747264260756,-1305.0,0.00011574,2]
[361109151,1747264260765,-628.0,0.00011574,2]
[361109152,1747264260775,-151.0,0.00011574,2]
[361109153,1747264260784,-798.0,0.00011574,2]
[361109154,1747264260793,-584.0,0.00011574,2]
[361109155,1747264260802,-1251.0,0.00011574,2]
[361109156,1747264260812,-553.0,0.00011574,2]
[361109157,1747264260821,-919.0,0.00011574,2]
[361109158,1747264260830,-1457.0,0.00011574,2]
[361109159,1747264260839,-150.0,0.00011584,2]
[361109160,1747264260848,-298.52029272,0.00011625,2]
[361109161,1747264260858,-12435.68774081,0.00011637,2]
[361109162,1747264260867,-150.0,0.0001164,2]
[361109163,1747264260876,-5000.0,0.00011641,2]